bitfinex/quotes_BTCUSD_20250118
["timestamp","ask_amount","ask_price","bid_price","bid_amount"]
[1737193651182,0.10945039,103050.0,103040.0,0.57695087]
[1737193651395,0.10945039,103050.0,103040.0,0.67687087]
[1737193651564,0.10945039,103050.0,103040.0,0.57695087]
[1737193651748,0.10945039,103050.0,103040.0,0.67687087]
[1737193654966,0.00089881,103050.0,103040.0,0.67687087]
[1737193655663,0.00089881,103050.0,103040.0,0.69987087]
[1737193659695,0.00089881,103050.0,103040.0,0.78700139]
[1737193660669,0.00089881,103050.0,103040.0,0.69987087]
[1737193660899,0.00089881,103050.0,103040.0,0.59652981]
[1737193661081,0.00089881,103050.0,103040.0,0.70599087]
[1737193662318,0.00089881,103050.0,103040.0,0.70641887]
[1737193663169,0.10945039,103050.0,103040.0,0.70029887]
[1737193663348,0.10945039,103050.0,103040.0,0.45609887]
[1737193663710,0.10945039,103050.0,103040.0,0.40609887]
[1737193664079,0.10945039,103050.0,103040.0,0.34671781]
[1737193664285,0.10945039,103050.0,103040.0,0.30617887]
[1737193666055,0.00089881,103050.0,103040.0,0.35237887]
[1737193666554,0.10945039,103050.0,103040.0,0.35237887]
[1737193667192,0.3871492,103050.0,103040.0,0.35237887]
[1737193667853,0.27859762,103050.0,103040.0,0.35237887]
[1737193668249,0.3871492,103050.0,103040.0,0.35237887]
[1737193669626,0.27859762,103050.0,103040.0,0.37537887]
[1737193669831,0.27859762,103050.0,103040.0,0.70529887]
[1737193672524,0.27859762,103050.0,103040.0,0.73554848]
[1737193673148,0.00089881,103050.0,103040.0,0.73554848]
[1737193673958,0.00089881,103050.0,103040.0,0.95337478]
[1737193674979,0.00089881,103050.0,103040.0,1.12763583]
[1737193675559,0.00089881,103050.0,103040.0,1.14722597]
[1737193678343,0.00089881,103050.0,103040.0,1.27792176]
[1737193680272,0.00089881,103050.0,103040.0,1.14722598]
[1737193681780,0.00089881,103050.0,103040.0,0.97296493]
[1737193682974,0.00089881,103050.0,103040.0,1.01653019]
[1737193684781,0.00089881,103050.0,103040.0,0.98628058]
[1737193685258,0.00089881,103050.0,103040.0,1.11682363]
[1737193685590,0.00089881,103050.0,103040.0,1.14706726]
[1737193686110,0.00089881,103050.0,103040.0,1.11682363]
[1737193686406,0.00089881,103050.0,103040.0,1.2474799]
[1737193687124,0.00089881,103050.0,103040.0,1.27772409]
[1737193687495,0.00089881,103050.0,103040.0,1.14706782]
[1737193690125,0.00089881,103050.0,103040.0,1.01652477]
[1737193691193,0.00089881,103050.0,103040.0,1.02260477]
[1737193691549,0.00089881,103050.0,103040.0,0.99236058]
[1737193692343,0.00089881,103050.0,103040.0,1.02260591]
[1737193692546,0.00089881,103050.0,103040.0,1.27780943]
[1737193692751,0.00089881,103050.0,103040.0,1.28388943]
[1737193693665,0.00089881,103050.0,103040.0,1.15322066]
[1737193695579,0.00089881,103050.0,103040.0,0.97899563]
[1737193697920,0.00089881,103050.0,103040.0,1.2403872]
[1737193698652,0.00089881,103050.0,103040.0,1.1941872]
[1737193698864,0.00089881,103050.0,103040.0,1.1141872]
[1737193700582,0.00089881,103050.0,103040.0,1.1958872]
[1737193701025,0.00089881,103050.0,103040.0,1.2416872]
[1737193701832,0.00089881,103050.0,103040.0,1.02390591]
[1737193701833,8.1e-07,103050.0,103040.0,1.02390591]
[1737193703222,8.1e-07,103050.0,103040.0,1.14634663]
[1737193707080,8.1e-07,103050.0,103040.0,1.40757749]
[1737193709103,8.1e-07,103050.0,103040.0,1.0237452]
[1737193712505,8.1e-07,103050.0,103040.0,1.40757749]
[1737193714764,8.1e-07,103050.0,103040.0,1.14634663]
[1737193723984,8.1e-07,103050.0,103040.0,1.14026663]
[1737193724182,8.1e-07,103050.0,103040.0,1.14626663]
[1737193741496,0.08171538,103070.0,103060.0,0.22949106]
[1737193741664,0.08171538,103070.0,103060.0,0.3589772]
[1737193742707,0.08171538,103070.0,103060.0,0.88212615]
[1737193742900,0.08171538,103070.0,103060.0,1.13204615]
[1737193743467,0.08261397,103070.0,103060.0,1.13204615]
[1737193744118,0.08261397,103070.0,103060.0,1.00125891]
[1737193744355,0.08261397,103070.0,103060.0,1.0108987]
[1737193744507,0.19895941,103070.0,103060.0,0.62851764]
[1737193744707,0.27010485,103070.0,103060.0,0.59809358]
[1737193745115,0.36712585,103070.0,103060.0,0.59809358]
[1737193745565,0.36712585,103070.0,103060.0,0.2929607]
[1737193745956,0.29598041,103070.0,103060.0,0.2929607]
[1737193747125,0.29598041,103070.0,103060.0,0.20573187]
[1737193747325,0.36712585,103070.0,103060.0,0.00946106]
[1737193748310,0.45402354,103070.0,103060.0,0.00946106]
[1737193749382,0.58438291,103070.0,103060.0,0.00946106]
[1737193752399,0.41621647,103070.0,103060.0,0.10649106]
[1737193752607,0.2858571,103070.0,103060.0,0.20573187]
[1737193753437,0.3231603,103070.0,103060.0,0.20573187]
[1737193753848,0.23626261,103070.0,103060.0,0.20573187]
[1737193755270,0.23626261,103070.0,103060.0,0.20670209]
[1737193755893,0.12781397,103070.0,103060.0,0.20670209]
[1737193756049,0.12781397,103070.0,103060.0,0.30670209]
[1737193756247,0.08261397,103070.0,103060.0,0.30573187]
[1737193759383,0.00089859,103070.0,103060.0,0.31173187]
[1737193760715,0.00089859,103070.0,103060.0,0.32156177]
[1737193761424,0.00089859,103070.0,103060.0,0.47156177]
[1737193761624,0.00089859,103070.0,103060.0,0.49456177]
[1737193762447,0.00089859,103070.0,103060.0,0.5817906]
[1737193763868,0.00089859,103070.0,103060.0,0.71263384]
[1737193764893,0.1957254,103080.0,103070.0,0.20648206]
[1737193765092,0.1957254,103080.0,103070.0,0.30572287]
[1737193765991,0.19577564,103080.0,103070.0,0.30572287]
[1737193767177,0.19577564,103080.0,103070.0,0.19626181]
[1737193767363,0.19577564,103080.0,103070.0,0.20572287]
[1737193767863,0.087327,103080.0,103070.0,0.20669297]
[1737193768071,0.087327,103080.0,103070.0,0.30669297]
[1737193768230,0.087327,103080.0,103070.0,0.30572287]
[1737193769770,0.004327,103080.0,103070.0,0.30572287]
[1737193770389,0.004327,103080.0,103070.0,0.20572287]
[1737193770584,0.004327,103080.0,103070.0,0.20669291]
[1737193771256,0.11277564,103080.0,103070.0,0.20572287]
[1737193772865,0.004327,103080.0,103070.0,0.20572287]
[1737193775507,0.07546946,103080.0,103070.0,0.20572287]
[1737193779098,0.07636805,103080.0,103070.0,0.20572287]
[1737193786529,0.00522559,103080.0,103070.0,0.47872287]
[1737193786739,0.00522559,103080.0,103070.0,0.60482287]
[1737193786961,0.00522559,103080.0,103070.0,0.70474287]
[1737193787381,0.00522559,103080.0,103070.0,0.73498996]
[1737193787592,0.00522559,103080.0,103070.0,0.60482287]
[1737193788110,0.00522559,103080.0,103070.0,0.63507854]
[1737193788592,0.00522559,103080.0,103070.0,0.6350828]
[1737193788793,0.00522559,103080.0,103070.0,0.85315487]
[1737193790217,0.00522559,103080.0,103070.0,0.873252]
[1737193796514,0.00522559,103080.0,103070.0,0.879252]
[1737193798223,0.00522559,103080.0,103070.0,1.05363498]
[1737193800671,0.00522559,103080.0,103070.0,1.15355498]
[1737193801394,0.00522559,103080.0,103070.0,1.37153371]
[1737193802264,0.00522559,103080.0,103070.0,1.28430488]
[1737193803276,0.00522559,103080.0,103070.0,0.97907866]
[1737193811074,1e-08,103080.0,103070.0,0.97907866]
[1737193811709,1e-08,103080.0,103070.0,1.15316466]
[1737193812825,1e-08,103080.0,103070.0,0.97907866]
[1737193818823,0.00089859,103090.0,103080.0,0.32939306]
[1737193819118,0.00089859,103090.0,103080.0,0.46864412]
[1737193820487,0.00089859,103090.0,103080.0,0.86028515]
[1737193820893,0.00089859,103090.0,103080.0,0.93728515]
[1737193821621,0.00089859,103090.0,103080.0,1.06823254]
[1737193822786,0.00089859,103090.0,103080.0,0.94368553]
[1737193822989,0.00089859,103090.0,103080.0,0.86668553]
[1737193823575,0.00089859,103090.0,103080.0,0.73573437]
[1737193824854,0.00089859,103090.0,103080.0,1.08425934]
[1737193825054,0.15084105,103090.0,103080.0,0.94558902]
[1737193825258,0.42853986,103090.0,103080.0,0.94558902]
[1737193825461,0.42853986,103090.0,103080.0,1.06532909]
[1737193825660,0.42853986,103090.0,103080.0,0.98832909]
[1737193825869,0.42853986,103090.0,103080.0,0.69628768]
[1737193826088,0.42853986,103090.0,103080.0,0.59628768]
[1737193826270,0.42853986,103090.0,103080.0,0.69628768]
[1737193826619,0.42853986,103090.0,103080.0,0.47871387]
[1737193827686,0.42853986,103090.0,103080.0,0.48838001]
[1737193827887,0.42853986,103090.0,103080.0,0.57540758]
[1737193828919,0.15084105,103090.0,103080.0,0.57540758]
[1737193829304,0.07969859,103090.0,103080.0,0.57540758]
[1737193829478,0.15084105,103090.0,103080.0,0.57540758]
[1737193830472,0.15084105,103090.0,103080.0,0.47540758]
[1737193830678,0.15084105,103090.0,103080.0,0.57540758]
[1737193831946,0.1581733,103090.0,103080.0,0.57540758]
[1737193835318,0.15758805,103090.0,103080.0,0.57540758]
[1737193835721,0.15758805,103090.0,103080.0,0.57583538]
[1737193835903,0.15758805,103090.0,103080.0,0.70638162]
[1737193837236,0.15758805,103090.0,103080.0,0.60638162]
[1737193837537,0.15758805,103090.0,103080.0,0.58338162]
[1737193838463,0.15758805,103090.0,103080.0,0.30283538]
[1737193838638,0.20258805,103090.0,103080.0,0.30283538]
[1737193844969,0.20258805,103090.0,103080.0,0.29316924]
[1737193845989,0.20258805,103090.0,103080.0,0.20614167]
[1737193849686,0.15758805,103090.0,103080.0,0.20614167]
[1737193864523,0.08644559,103090.0,103080.0,0.20614167]
[1737193864673,0.15758805,103090.0,103080.0,0.20614167]
[1737193865968,0.07878805,103090.0,103080.0,0.20614167]
[1737193869005,0.15878805,103090.0,103080.0,0.20614167]
[1737193870224,0.07878805,103090.0,103080.0,0.20614167]
[1737193870848,0.15878805,103090.0,103080.0,0.20614167]
[1737193872563,0.15878805,103090.0,103080.0,0.20114167]
[1737193872931,0.08764559,103090.0,103080.0,0.20114167]
[1737193873141,0.15878805,103090.0,103080.0,0.20114167]
[1737193874875,0.07878805,103090.0,103080.0,0.20114167]
[1737193877682,0.07878805,103090.0,103080.0,0.27724167]
[1737193878115,0.00764559,103090.0,103080.0,0.48726924]
[1737193878291,0.00764559,103090.0,103080.0,0.53336924]
[1737193878520,0.00764559,103090.0,103080.0,0.56364594]
[1737193878677,0.07878805,103090.0,103080.0,0.56364594]
[1737193878878,0.07878805,103090.0,103080.0,0.53336924]
[1737193879504,0.07878805,103090.0,103080.0,0.96892932]
[1737193880417,0.07801764,103090.0,103080.0,0.84592932]
[1737193880646,0.07801764,103090.0,103080.0,0.94592932]
[1737193880943,0.07801764,103090.0,103080.0,0.55388791]
[1737193881303,0.07801764,103090.0,103080.0,0.45388791]
[1737193881514,0.07801764,103090.0,103080.0,0.33168791]
[1737193881717,0.07801764,103090.0,103080.0,0.2883259]
[1737193884750,0.00687518,103090.0,103080.0,0.2883259]
[1737193885092,0.07801764,103090.0,103080.0,0.2883259]
[1737193886223,0.07801764,103090.0,103080.0,0.30649142]
[1737193898225,0.00687518,103090.0,103080.0,0.30649142]
[1737193898607,0.07801764,103090.0,103080.0,0.30649142]
[1737193901750,0.07801764,103090.0,103080.0,0.43703766]
[1737193903318,0.00687518,103090.0,103080.0,0.61433766]
[1737193904643,0.00687518,103090.0,103080.0,0.78840034]
[1737193906312,0.00687518,103090.0,103080.0,0.79440034]
[1737193907451,0.00687518,103090.0,103080.0,0.81740034]
[1737193907658,0.00687518,103090.0,103080.0,0.86580034]
[1737193907807,0.00687518,103090.0,103080.0,1.04608115]
[1737193908825,0.00687518,103090.0,103080.0,1.02791563]
[1737193909299,0.00687518,103090.0,103080.0,1.02816389]
[1737193909660,0.00687518,103090.0,103080.0,1.07539403]
[1737193910210,0.00687518,103090.0,103080.0,1.16290583]
[1737193911260,0.00687518,103090.0,103080.0,0.90133135]
[1737193912531,0.00687518,103090.0,103080.0,1.07560107]
[1737193913729,0.00687518,103090.0,103080.0,1.20630262]
[1737193914583,0.00687518,103090.0,103080.0,1.17723792]
[1737193914972,0.00687518,103090.0,103080.0,1.19702454]
[1737193921550,0.00687518,103090.0,103080.0,1.17723792]
[1737193923397,0.07801764,103090.0,103080.0,1.02253792]
[1737193923607,0.07801764,103090.0,103080.0,0.99825711]
[1737193924491,0.2300601,103090.0,103080.0,0.74225711]
[1737193924669,0.15891764,103090.0,103080.0,0.4371162]
[1737193925886,0.15891764,103090.0,103080.0,0.21930711]
[1737193930495,0.07801764,103090.0,103080.0,0.21930711]
[1737193933325,0.07750164,103090.0,103080.0,0.21930711]
[1737193937675,0.00635918,103090.0,103080.0,0.21930711]
[1737193937862,0.00635918,103090.0,103080.0,0.29800711]
[1737193938110,0.00635918,103090.0,103080.0,0.54800711]
[1737193938310,0.00635918,103090.0,103080.0,0.57100711]
[1737193939077,0.00635918,103090.0,103080.0,0.8338162]
[1737193939254,0.00635918,103090.0,103080.0,0.8398162]
[1737193939463,0.00635918,103090.0,103080.0,0.87006085]
[1737193940690,0.00635918,103090.0,103080.0,1.17520176]
[1737193941636,0.00635918,103090.0,103080.0,1.04450021]
[1737193944419,0.00635918,103090.0,103080.0,1.06386105]
[1737193949663,0.00635918,103090.0,103080.0,1.16378105]
[1737193950917,0.00635918,103090.0,103080.0,1.22203105]
[1737193951241,0.00635918,103090.0,103080.0,1.16378105]
[1737193951443,0.00089943,103100.0,103090.0,0.30936306]
[1737193951650,0.00089943,103100.0,103090.0,0.44859884]
[1737193952427,0.00089943,103100.0,103090.0,0.97096393]
[1737193952958,0.00089943,103100.0,103090.0,0.98912937]
[1737193953906,0.00094987,103100.0,103090.0,0.98912937]
[1737193954405,0.00094987,103100.0,103090.0,0.95888472]
[1737193954907,0.00545113,103100.0,103090.0,0.95888472]
[1737193955079,0.00550624,103100.0,103090.0,0.95888472]
[1737193956681,0.00550624,103100.0,103090.0,1.04591954]
[1737193958515,0.00550624,103100.0,103090.0,1.05541878]
[1737193965732,0.00550624,103100.0,103090.0,0.83776666]
[1737193966374,0.00550624,103100.0,103090.0,0.86798298]
[1737193973513,0.00550624,103100.0,103090.0,0.93808298]
[1737193973717,0.0766487,103100.0,103090.0,0.93808298]
[1737193974095,0.1518487,103100.0,103090.0,0.81133266]
[1737193974301,0.1518487,103100.0,103090.0,0.8343808]
[1737193974712,0.1518487,103100.0,103090.0,0.80411634]
[1737193975303,0.1518487,103100.0,103090.0,0.49340337]
[1737193982390,0.1518487,103100.0,103090.0,0.62399464]
[1737193985743,0.1518487,103100.0,103090.0,0.62442254]
[1737193985936,0.1518487,103100.0,103090.0,0.79854424]
[1737193987478,0.08070624,103100.0,103090.0,0.79854424]
[1737193987704,0.1518487,103100.0,103090.0,0.79854424]
[1737193989624,0.22299116,103100.0,103090.0,0.79854424]
[1737193989828,0.27289116,103100.0,103090.0,0.62554424]
[1737193990186,0.27289116,103100.0,103090.0,0.616045]
[1737193991388,0.27289116,103100.0,103090.0,0.22429721]
[1737193995928,0.2017487,103100.0,103090.0,0.22429721]
[1737193996129,0.27289116,103100.0,103090.0,0.22429721]
[1737193998932,0.2017487,103100.0,103090.0,0.22429721]
[1737193999259,0.27289116,103100.0,103090.0,0.22429721]
[1737194000191,0.2017487,103100.0,103090.0,0.22429721]
[1737194000693,0.27289116,103100.0,103090.0,0.22429721]
[1737194000891,0.2017487,103100.0,103090.0,0.22429721]
[1737194002314,0.08070624,103100.0,103090.0,0.24729721]
[1737194002557,0.00550624,103100.0,103090.0,0.24729721]
[1737194003114,0.00550624,103100.0,103090.0,0.62819721]
[1737194004088,0.00550624,103100.0,103090.0,1.0501783]
[1737194004905,0.00550624,103100.0,103090.0,1.019945]
[1737194005551,0.28320505,103100.0,103090.0,1.019945]
[1737194006389,0.28320505,103100.0,103090.0,0.8458233]
[1737194006606,0.28320505,103100.0,103090.0,0.87606179]
[1737194007221,0.28320505,103100.0,103090.0,1.05018349]
[1737194008122,0.28320505,103100.0,103090.0,1.03924171]
[1737194008624,0.28320505,103100.0,103090.0,1.06948339]
[1737194010278,0.28320505,103100.0,103090.0,1.03924171]
[1737194011590,0.28320505,103100.0,103090.0,1.06948028]
[1737194011892,0.28320505,103100.0,103090.0,0.89535858]
[1737194012315,0.28320505,103100.0,103090.0,0.86512001]
[1737194012895,0.28320505,103100.0,103090.0,0.89535652]
[1737194013100,0.28320505,103100.0,103090.0,1.06947822]
[1737194014119,0.28320505,103100.0,103090.0,1.28713034]
[1737194017438,0.00550624,103100.0,103090.0,1.28713034]
[1737194017637,0.00550624,103100.0,103090.0,1.20009552]
[1737194028000,0.00550624,103100.0,103090.0,1.20609552]
[1737194031418,0.00550624,103100.0,103090.0,1.29312804]
[1737194034128,0.00550624,103100.0,103090.0,1.16222804]
[1737194034331,0.00550624,103100.0,103090.0,1.06222804]
[1737194034758,0.08420624,103100.0,103090.0,1.06222804]
[1737194035506,0.08420624,103100.0,103090.0,1.16222804]
[1737194035729,0.00550624,103100.0,103090.0,0.77045422]
[1737194036766,0.00550624,103100.0,103090.0,0.94457592]
[1737194038348,0.00550624,103100.0,103090.0,1.09567508]
[1737194039032,0.00550624,103100.0,103090.0,1.09570341]
[1737194040269,0.00550624,103100.0,103090.0,1.18315619]
[1737194040882,0.00550624,103100.0,103090.0,1.11205703]
[1737194041909,0.00550624,103100.0,103090.0,1.18315619]
[1737194042356,0.00550624,103100.0,103090.0,0.96550407]
[1737194043204,0.00550624,103100.0,103090.0,0.89440491]
[1737194049512,0.00550624,103100.0,103090.0,1.2782372]
[1737194054551,0.00550624,103100.0,103090.0,1.01666272]
[1737194056569,0.00554814,103100.0,103090.0,1.01666272]
[1737194060993,1.4e-07,103100.0,103090.0,1.16478272]
[1737194061193,0.0787,103120.0,103110.0,0.12944406]
[1737194061316,0.07875044,103120.0,103110.0,0.2598911]
[1737194061519,0.07875044,103120.0,103110.0,0.25892138]
[1737194061735,0.07875044,103120.0,103110.0,0.50892138]
[1737194061736,5.044e-05,103120.0,103110.0,0.50892138]
[1737194062043,5.044e-05,103120.0,103110.0,0.9188298]
[1737194063282,5.044e-05,103120.0,103110.0,1.30266209]
[1737194065546,5.044e-05,103120.0,103110.0,1.05099087]
[1737194065923,0.00094903,103120.0,103110.0,1.15091087]
[1737194066076,0.00094903,103120.0,103110.0,1.1700006]
[1737194070366,0.00094903,103120.0,103110.0,1.43065865]
[1737194071465,0.00094903,103120.0,103110.0,1.04682636]
[1737194075314,0.00094903,103120.0,103110.0,0.92242636]
[1737194075698,0.00094903,103120.0,103110.0,0.89218985]
[1737194076271,0.00094903,103120.0,103110.0,1.10931668]
[1737194077305,0.00094903,103120.0,103110.0,0.84265863]
[1737194077525,0.00094903,103120.0,103110.0,0.87881845]
[1737194077771,0.00094903,103120.0,103110.0,0.84865863]
[1737194078116,0.00094903,103120.0,103110.0,0.87881893]
[1737194078313,0.00094903,103120.0,103110.0,0.84865863]
[1737194079490,0.00094903,103120.0,103110.0,0.87882273]
[1737194089900,0.00094903,103120.0,103110.0,0.96022273]
[1737194091815,0.00094903,103120.0,103110.0,1.00375395]
[1737194097699,0.00094903,103120.0,103110.0,1.12692819]
[1737194098954,0.00094903,103120.0,103110.0,0.7430959]
[1737194100110,0.00094903,103120.0,103110.0,1.12692819]
[1737194100654,0.00094903,103120.0,103110.0,1.17512819]
[1737194102827,0.00094903,103120.0,103110.0,1.04552819]
[1737194103285,0.00094903,103120.0,103110.0,1.03952819]
[1737194103491,0.00094903,103120.0,103110.0,1.04552819]
[1737194103694,0.07854903,103120.0,103110.0,0.81660819]
[1737194103819,0.07854903,103120.0,103110.0,0.92260819]
[1737194104024,0.07854903,103120.0,103110.0,0.94560819]
[1737194104221,0.07854903,103120.0,103110.0,1.20670358]
[1737194105485,0.07854903,103120.0,103110.0,0.82287129]
[1737194109390,0.07854903,103120.0,103110.0,0.81687129]
[1737194109596,0.07854903,103120.0,103110.0,0.82287129]
[1737194110747,0.07854903,103120.0,103110.0,0.5617759]
[1737194112160,0.14960949,103120.0,103110.0,0.4617759]
[1737194112360,0.07854903,103120.0,103110.0,0.4617759]
[1737194112571,0.07854903,103120.0,103110.0,0.7230359]
[1737194113346,0.07854903,103120.0,103110.0,0.6868718]
[1737194113554,0.07854903,103120.0,103110.0,0.6928718]
[1737194114729,0.07854903,103120.0,103110.0,0.7231091]
[1737194114893,0.07854903,103120.0,103110.0,0.94082311]
[1737194115497,0.07854903,103120.0,103110.0,0.91058581]
[1737194116197,0.00094903,103120.0,103110.0,1.01058581]
[1737194116636,0.00094903,103120.0,103110.0,0.7928718]
[1737194118653,0.00094903,103120.0,103110.0,0.82309376]
[1737194118853,0.00094903,103120.0,103110.0,1.04074236]
[1737194120309,0.00094903,103120.0,103110.0,0.82309376]
[1737194127313,0.00094903,103120.0,103110.0,0.81709376]
[1737194127528,0.00094903,103120.0,103110.0,0.7928718]
[1737194128604,0.00094903,103120.0,103110.0,0.80494931]
[1737194128933,0.00094903,103120.0,103110.0,0.77470636]
[1737194129068,0.00094903,103120.0,103110.0,0.80494852]
[1737194129693,0.08154903,103120.0,103110.0,0.68585879]
[1737194129890,0.08154903,103120.0,103110.0,0.65561663]
[1737194131593,0.08154903,103120.0,103110.0,0.78634711]
[1737194131806,0.15260949,103120.0,103110.0,0.78634711]
[1737194132209,0.26956995,103120.0,103110.0,0.74767535]
[1737194132947,0.26956995,103120.0,103110.0,0.77067535]
[1737194134390,0.26956995,103120.0,103110.0,0.59641232]
[1737194136681,0.26956995,103120.0,103110.0,0.46577585]
[1737194139124,0.26956995,103120.0,103110.0,0.31577585]
[1737194141212,0.26956995,103120.0,103110.0,0.22868487]
[1737194143115,0.26956995,103120.0,103110.0,0.24682127]
[1737194143905,0.19850949,103120.0,103110.0,0.24682127]
[1737194148617,0.19850949,103120.0,103110.0,0.33391225]
[1737194150886,0.26956995,103120.0,103110.0,0.33391225]
[1737194151063,0.19850949,103120.0,103110.0,0.33391225]
[1737194151274,0.15260949,103120.0,103110.0,0.33391225]
[1737194151715,0.22366995,103120.0,103110.0,0.33391225]
[1737194151916,0.15260949,103120.0,103110.0,0.33391225]
[1737194156663,0.22366995,103120.0,103110.0,0.33391225]
[1737194158369,0.15260949,103120.0,103110.0,0.33391225]
[1737194159083,0.22366995,103120.0,103110.0,0.33391225]
[1737194160955,0.36894395,103120.0,103110.0,0.21167144]
[1737194161161,0.27196995,103120.0,103110.0,0.21167144]
[1737194161359,0.27196995,103120.0,103110.0,0.23467144]
[1737194161563,0.27196995,103120.0,103110.0,0.21167144]
[1737194161967,0.27196995,103120.0,103110.0,0.23467144]
[1737194162180,0.27196995,103120.0,103110.0,0.14758046]
[1737194163792,0.36894395,103120.0,103110.0,0.14758046]
[1737194164001,0.27196995,103120.0,103110.0,0.14758046]
[1737194166170,0.27196995,103120.0,103110.0,0.0411364]
[1737194166367,0.36894395,103120.0,103110.0,0.0411364]
[1737194166939,0.36894395,103120.0,103110.0,0.1381194]
[1737194167135,0.44000441,103120.0,103110.0,0.0181364]
[1737194170683,0.223483,103110.0,103100.0,0.0234279]
[1737194170884,0.36560392,103110.0,103100.0,0.0004279]
[1737194175103,0.1265,103110.0,103100.0,0.0234279]
[1737194175243,0.29454346,103110.0,103100.0,0.12988196]
[1737194175449,0.36560392,103110.0,103100.0,0.03288896]
[1737194176780,0.36560392,103110.0,103100.0,0.1204209]
[1737194176936,0.07106046,103110.0,103100.0,0.12988196]
[1737194177285,0.46408432,103120.0,103110.0,0.12944406]
[1737194177511,0.53514478,103120.0,103110.0,0.12944406]
[1737194178891,0.14306995,103120.0,103110.0,0.12944406]
[1737194179095,0.24004395,103120.0,103110.0,0.12944406]
[1737194179494,0.24004395,103120.0,103110.0,0.023]
[1737194179495,0.31864395,103120.0,103110.0,0.023]
[1737194179687,0.096983,103110.0,103100.0,0.00988896]
[1737194179885,0.14212092,103110.0,103100.0,0.12988196]
[1737194180081,0.07106046,103110.0,103100.0,0.12988196]
[1737194180284,0.16804346,103110.0,103100.0,0.12988196]
[1737194181065,0.07106046,103110.0,103100.0,0.12988196]
[1737194181476,0.14212092,103110.0,103100.0,0.12988196]
[1737194181624,0.07195927,103110.0,103100.0,0.12988196]
[1737194181827,0.16894227,103110.0,103100.0,0.03288896]
[1737194182052,0.24000273,103110.0,103100.0,0.0234279]
[1737194182275,0.36650273,103110.0,103100.0,0.0234279]
[1737194186506,0.36650273,103110.0,103100.0,0.1204209]
[1737194186877,0.15055927,103110.0,103100.0,0.1204209]
[1737194187088,0.07195927,103110.0,103100.0,0.12988196]
[1737194193883,0.16894227,103110.0,103100.0,0.12988196]
[1737194194093,0.07195927,103110.0,103100.0,0.12988196]
[1737194194911,0.16894227,103110.0,103100.0,0.12988196]
[1737194196148,0.07195927,103110.0,103100.0,0.12988196]
[1737194196905,0.07195927,103110.0,103100.0,0.31042277]
[1737194202434,0.00089881,103110.0,103100.0,0.31042277]
[1737194202635,0.07195927,103110.0,103100.0,0.31042277]
[1737194203533,0.00089881,103110.0,103100.0,0.35732277]
[1737194203935,0.07195927,103110.0,103100.0,0.35732277]
[1737194205821,0.07195927,103110.0,103100.0,0.44441375]
[1737194207082,0.07195927,103110.0,103100.0,0.30675269]
[1737194207278,0.07195927,103110.0,103100.0,0.31621375]
[1737194208180,0.07195927,103110.0,103100.0,0.22912277]
[1737194209220,0.16894227,103110.0,103100.0,0.21966171]
[1737194209629,0.16894227,103110.0,103100.0,0.22912277]
[1737194209782,0.16894227,103110.0,103100.0,0.03288896]
[1737194209989,0.31910273,103110.0,103100.0,0.03288896]
[1737194210195,0.24804227,103110.0,103100.0,0.03288896]
[1737194212380,0.24804227,103110.0,103100.0,0.12988196]
[1737194213118,0.24804227,103110.0,103100.0,0.03288896]
[1737194213290,0.24804227,103110.0,103100.0,0.12988196]
[1737194214050,0.33517001,103110.0,103100.0,0.12988196]
[1737194215420,0.24804227,103110.0,103100.0,0.12988196]
[1737194219667,0.31910273,103110.0,103100.0,0.12988196]
[1737194219873,0.40623047,103110.0,103100.0,0.12988196]
[1737194220075,0.40623047,103110.0,103100.0,0.1204209]
[1737194220476,0.40623047,103110.0,103100.0,0.12988196]
[1737194221007,0.40623047,103110.0,103100.0,0.1204209]
[1737194221655,0.40623047,103110.0,103100.0,0.0234279]
[1737194222059,0.40623047,103110.0,103100.0,0.12988196]
[1737194222261,0.31910273,103110.0,103100.0,0.12988196]
[1737194222489,0.31910273,103110.0,103100.0,0.03288896]
[1737194222685,0.31910273,103110.0,103100.0,0.0234279]
[1737194223006,0.31910273,103110.0,103100.0,0.0004279]
[1737194224542,0.40623047,103110.0,103100.0,0.0004279]
[1737194225348,0.26410955,103110.0,103100.0,0.0004279]
[1737194225471,0.40623047,103110.0,103100.0,0.0004279]
[1737194225907,0.53692208,103110.0,103100.0,0.0004279]
[1737194229680,0.38676162,103110.0,103100.0,0.0004279]
[1737194230397,0.38676162,103110.0,103100.0,0.1204209]
[1737194230632,0.38676162,103110.0,103100.0,0.0234279]
[1737194231606,0.45782208,103110.0,103100.0,0.0234279]
[1737194231810,0.53462208,103110.0,103100.0,0.0234279]
[1737194232313,0.53462208,103110.0,103100.0,0.0004279]
[1737194234910,0.70887756,103110.0,103100.0,0.0004279]
[1737194236040,0.61189456,103110.0,103090.0,0.09502829]
[1737194236342,0.23911392,103100.0,103090.0,0.11802829]
[1737194239562,0.23911392,103100.0,103090.0,0.11845629]
[1737194246162,0.23911392,103100.0,103090.0,0.023428]
[1737194246554,0.23911392,103100.0,103090.0,0.12043]
[1737194248490,0.23911392,103100.0,103090.0,0.023428]
[1737194248689,0.23911392,103100.0,103090.0,0.12043]
[1737194249109,0.23911392,103100.0,103090.0,0.023428]
[1737194249529,0.23911392,103100.0,103090.0,0.12043]
[1737194251177,0.24001273,103100.0,103090.0,0.12043]
[1737194253024,0.32714047,103100.0,103090.0,0.12043]
[1737194257520,0.32714047,103100.0,103090.0,0.023428]
[1737194259533,0.63208756,103100.0,103090.0,0.023428]
[1737194259735,0.93324802,103100.0,103090.0,0.000428]
[1737194260672,1.03248884,103100.0,103090.0,0.000428]
[1737194261083,0.93324803,103100.0,103090.0,0.000428]
[1737194261503,0.86218757,103100.0,103090.0,0.000428]
[1737194261858,1.02037578,103100.0,103090.0,0.000428]
[1737194262053,0.6576944,103100.0,103090.0,0.000428]
[1737194262262,0.71921532,103100.0,103090.0,0.000428]
[1737194262666,0.55783209,103100.0,103090.0,0.000428]
[1737194263484,0.62889255,103100.0,103090.0,0.000428]
[1737194263684,1.06038793,103100.0,103090.0,0.000428]
[1737194265066,0.92976134,103100.0,103090.0,0.000428]
[1737194265240,1.12900215,103100.0,103090.0,0.000428]
[1737194265965,1.02900215,103100.0,103090.0,0.000428]
[1737194266199,0.92976134,103100.0,103090.0,0.000428]
[1737194272433,1.06031383,103100.0,103090.0,0.000428]
[1737194276745,0.00067469,103090.0,103080.0,0.0004278]
[1737194276965,0.23979761,103090.0,103080.0,0.0004278]
[1737194278642,0.32675993,103090.0,103080.0,0.0004278]
[1737194282596,0.32675993,103090.0,103080.0,0.0756278]
[1737194283472,0.45731242,103090.0,103080.0,0.0756278]
[1737194284560,0.32675993,103090.0,103080.0,0.0756278]
[1737194285540,0.45731242,103090.0,103080.0,0.0756278]
[1737194287237,0.45821123,103090.0,103080.0,0.0756278]
[1737194294732,0.45821123,103090.0,103080.0,0.0986278]
[1737194294918,0.29014877,103090.0,103080.0,0.34028061]
[1737194295608,0.15959628,103090.0,103080.0,0.34028061]
[1737194295824,0.23065674,103090.0,103080.0,0.34028061]
[1737194296020,0.32765874,103090.0,103080.0,0.34028061]
[1737194296311,0.23065674,103090.0,103080.0,0.34028061]
[1737194296483,0.32765874,103090.0,103080.0,0.34028061]